bitfinex/quotes_SOLUSD_20220128
["timestamp","ask_amount","ask_price","bid_price","bid_amount"]
[1643347801437,22.34273332,92.97,92.863,49.37918187]
[1643347801737,11.3935406,92.968,92.863,49.37918187]
[1643347801939,2.98738084,92.967,92.863,49.37918187]
[1643347802140,112.28738084,92.967,92.863,49.37918187]
[1643347802538,6.0,92.957,92.863,49.37918187]
[1643347802745,27.16078084,92.956,92.863,49.37918187]
[1643347803138,24.1734,92.956,92.864,0.25]
[1643347803337,6.0,92.957,92.873,6.0]
[1643347803538,6.0,92.957,92.863,49.37918187]
[1643347803738,23.4069,92.967,92.863,49.37918187]
[1643347803939,6.0,92.957,92.836,17.89663408]
[1643347804139,2.9876893,92.956,92.846,6.0]
[1643347804341,2.9876893,92.956,92.847,0.25]
[1643347804841,6.0,92.957,92.847,50.13846211]
[1643347805340,23.4069,92.967,92.847,47.99066516]
[1643347805540,109.3,92.966,92.848,23.7463]
[1643347805740,112.28811382,92.966,92.847,47.99066516]
[1643347805943,2.98811382,92.965,92.847,47.99066516]
[1643347806141,2.98811382,92.965,92.848,0.25]
[1643347806945,109.3,92.959,92.848,0.25]
[1643347807147,109.3,92.959,92.817,17.87568964]
[1643347807344,22.35285519,92.958,92.817,17.87568964]
[1643347807544,2.98811382,92.957,92.817,17.87568964]
[1643347807743,22.35285519,92.957,92.817,17.87568964]
[1643347807945,22.35285519,92.956,92.817,17.87568964]
[1643347808146,2.98811382,92.955,92.824,46.52694462]
[1643347808345,3.09754547,92.939,92.824,46.52694462]
[1643347808547,50.13984547,92.939,92.825,0.25]
[1643347808746,2.98811382,92.938,92.825,0.25]
[1643347808950,6.0,92.929,92.825,0.25]
[1643347809549,6.0,92.929,92.824,46.52694462]
[1643347809753,2.9916865,92.928,92.824,46.52694462]
[1643347810185,6.0,92.929,92.824,46.52694462]
[1643347810376,109.3,92.928,92.824,46.52694462]
[1643347810977,22.6569,92.927,92.824,46.52694462]
[1643347811177,109.3,92.919,92.791,22.5181]
[1643347811578,108.8,92.919,92.791,22.5181]
[1643347811777,108.8,92.919,92.738,4.41227142]
[1643347811977,14.13597337,92.918,92.763,24.5212]
[1643347812179,2.99244742,92.917,92.814,40.12492057]
[1643347812381,16.1675,92.91,92.814,40.12492057]
[1643347812578,6.0,92.907,92.814,40.12492057]
[1643347812787,6.0,92.907,92.822,0.25]
[1643347814077,109.3,92.906,92.822,0.25]
[1643347814278,109.3,92.906,92.814,40.12492057]
[1643347815084,109.3,92.906,92.734,4.41227142]
[1643347815481,109.3,92.906,92.724,4.41227142]
[1643347815679,16.1692,92.9,92.75,16.1684]
[1643347816080,3.09754547,92.899,92.781,48.46556043]
[1643347816282,3.09754547,92.899,92.796,39.52247885]
[1643347816680,3.09754547,92.899,92.744,15.8673]
[1643347817082,19.36474137,92.898,92.744,15.8673]
[1643347817280,16.1738,92.88,92.744,15.8673]
[1643347817779,109.3,92.878,92.781,36.88602234]
[1643347818582,109.3,92.867,92.781,36.88602234]
[1643347819283,109.3,92.867,92.821,25.92316553]
[1643347819683,109.3,92.867,92.821,7.66557835]
[1643347819884,2.95669142,92.866,92.821,7.66557835]
[1643347820087,16.1767,92.86,92.821,6.97304918]
[1643347820284,109.3,92.859,92.736,24.0715]
[1643347820485,157.5333,92.859,92.736,24.0715]
[1643347821084,2.95669142,92.858,92.737,0.25]
[1643347821285,16.1787,92.85,92.737,49.70590535]
[1643347821686,109.3,92.849,92.737,49.70590535]
[1643347821986,48.2333,92.859,92.747,6.0]
[1643347822392,48.2333,92.859,92.751,35.68030952]
[1643347822593,48.2333,92.859,92.761,6.0]
[1643347823391,6.0,92.849,92.751,35.68030952]
[1643347823588,23.2762,92.848,92.751,35.68030952]
[1643347823989,23.2762,92.848,92.728,10.59437647]
[1643347824189,109.3,92.829,92.692,24.7364]
[1643347824388,157.3521,92.829,92.709,23.4969]
[1643347824988,157.3521,92.829,92.718,49.21868681]
[1643347825390,157.3521,92.829,92.719,0.25]
[1643347825791,157.3521,92.829,92.72,2.1509594]
[1643347826394,48.0521,92.829,92.721,0.25]
[1643347826992,48.0521,92.829,92.718,49.21868681]
[1643347827192,48.0521,92.829,92.721,0.25]
[1643347827392,109.3,92.828,92.721,0.25]
[1643347827795,109.3,92.828,92.719,0.25]
[1643347828694,6.0,92.818,92.719,0.25]
[1643347828921,24.4454,92.817,92.719,0.25]
[1643347830095,24.4454,92.817,92.72,2.1509594]
[1643347830296,24.4454,92.817,92.719,0.25]
[1643347831898,109.3,92.816,92.719,0.25]
[1643347832399,109.3,92.816,92.718,49.21868681]
[1643347833297,16.1855,92.81,92.718,49.21868681]
[1643347833498,16.1855,92.81,92.687,22.882]
[1643347833699,16.1855,92.81,92.62,53.9602]
[1643347833700,16.1855,92.81,92.676,24.8829]
[1643347834099,16.1855,92.81,92.686,6.0]
[1643347834300,16.1911,92.78,92.686,6.0]
[1643347834499,109.3,92.778,92.687,44.69124708]
[1643347835000,109.3,92.778,92.697,6.0]
[1643347835803,109.3,92.778,92.687,44.69124708]
[1643347839527,6.0,92.768,92.687,44.69124708]
[1643347839731,24.4042,92.767,92.687,44.69124708]
[1643347839927,109.3,92.766,92.687,44.69124708]
[1643347840431,24.4042,92.767,92.687,44.69124708]
[1643347841029,109.3,92.766,92.687,44.69124708]
[1643347842832,24.4042,92.767,92.687,44.69124708]
[1643347843034,6.0,92.757,92.687,44.69124708]
[1643347844435,109.3,92.756,92.687,44.69124708]
[1643347845035,6.0,92.757,92.687,44.69124708]
[1643347846239,24.4042,92.767,92.687,44.69124708]
[1643347846438,23.3793,92.779,92.688,0.25]
[1643347846638,23.3793,92.779,92.688,2.4009594]
[1643347846940,23.3793,92.779,92.689,17.87386494]
[1643347847337,23.3793,92.779,92.69,0.25]
[1643347847740,23.3793,92.779,92.691,17.87386494]
[1643347848344,109.3,92.778,92.691,17.87386494]
[1643347848740,109.3,92.778,92.687,44.69124708]
[1643347848938,24.2409,92.777,92.687,44.69124708]
[1643347849845,24.2409,92.777,92.688,0.25]
[1643347854351,16.2612,92.786,92.688,0.25]
[1643347855546,23.5803,92.785,92.688,0.25]
[1643347856147,23.5803,92.785,92.687,44.69124708]
[1643347856347,109.3,92.784,92.687,44.69124708]
[1643347857246,109.3,92.784,92.688,0.25]
[1643347859846,109.3,92.773,92.688,0.25]
[1643347860046,47.2707,92.772,92.688,0.25]
[1643347860246,109.3,92.771,92.688,0.25]
[1643347861545,109.3,92.771,92.692,6.0]
[1643347861948,47.2707,92.772,92.683,6.0]
[1643347862148,6.0,92.774,92.684,34.77912311]
[1643347862350,6.0,92.774,92.693,2.1509594]
[1643347862549,1.48781118,92.79,92.704,36.5730627]
[1643347862749,1.48781118,92.792,92.704,36.5730627]
[1643347862949,1.48781118,92.793,92.714,6.0]
[1643347863149,1.48781118,92.794,92.714,6.0]
[1643347863349,1.48781118,92.797,92.715,6.0]
[1643347863551,1.48781118,92.797,92.716,6.0]
[1643347863747,6.0,92.787,92.706,24.0788]
[1643347863948,24.3683,92.786,92.704,36.5730627]
[1643347864149,1.48781118,92.797,92.706,0.25]
[1643347864351,1.48781118,92.808,92.714,6.0]
[1643347864550,1.48781118,92.808,92.721,6.0]
[1643347864751,1.48781118,92.81,92.722,39.28241849]
[1643347864949,1.48781118,92.811,92.722,39.28241849]
[1643347865152,1.48781118,92.811,92.732,6.0]
[1643347865350,1.48781118,92.815,92.733,0.25]
[1643347865550,1.48781118,92.816,92.733,6.25]
[1643347865754,1.48781118,92.815,92.733,6.25]
[1643347866053,1.48781118,92.816,92.733,6.25]
[1643347866250,1.48781118,92.817,92.733,6.25]
[1643347866451,1.48781118,92.816,92.733,6.25]
[1643347866654,1.48781118,92.817,92.733,6.25]
[1643347866850,7.48781118,92.819,92.733,6.25]
[1643347867353,6.0,92.819,92.733,6.25]
[1643347867551,7.48781118,92.819,92.733,6.25]
[1643347867751,6.0,92.819,92.733,6.25]
[1643347868351,1.48781118,92.821,92.734,20.02482434]
[1643347868554,1.48781118,92.846,92.744,6.0]
[1643347868750,23.529,92.893,92.745,23.635]
[1643347868751,1.48781118,92.855,92.745,23.635]
[1643347868952,1.48781118,92.857,92.746,6.0]
[1643347869152,1.48781118,92.865,92.756,38.70329032]
[1643347869351,1.48781118,92.872,92.771,34.93633907]
[1643347869552,1.48781118,92.891,92.781,6.0]
[1643347869853,1.48781118,92.894,92.782,0.25]
[1643347870151,1.48781118,92.894,92.782,27.61570212]
[1643347870352,1.48781118,92.895,92.783,142.32105117]
[1643347870552,1.48781118,92.897,92.793,6.0]
[1643347870751,23.6366,92.921,92.794,36.24841152]
[1643347870752,1.48781118,92.896,92.794,36.24841152]
[1643347870952,1.48781118,92.898,92.794,55.46315424]
[1643347871156,1.48781118,92.909,92.804,6.0]
[1643347871352,23.6366,92.921,92.804,6.0]
[1643347871353,1.48781118,92.91,92.805,0.25]
[1643347871553,1.48781118,92.908,92.805,6.25]
[1643347871955,1.48781118,92.916,92.806,21.36570212]
[1643347872154,2.98211323,92.938,92.806,21.36570212]
[1643347872155,1.48781118,92.917,92.806,21.36570212]
[1643347872353,1.48781118,92.915,92.817,48.36544333]
[1643347872554,1.48781118,92.915,92.827,6.0]
[1643347872755,1.48781118,92.915,92.828,0.25]
[1643347872954,17.65431118,92.92,92.817,48.36544333]
[1643347873156,1.48781118,92.915,92.817,48.36544333]
[1643347873355,1.48781118,92.918,92.787,19.21474272]
[1643347873553,1.48781118,92.911,92.805,6.0]
[1643347873756,1.48781118,92.906,92.805,6.0]
[1643347873954,1.48781118,92.902,92.787,19.21474272]
[1643347874155,16.1701,92.9,92.785,11.65534905]
[1643347874360,16.1701,92.9,92.769,47.78070347]
[1643347874566,31.76111759,92.899,92.76,19.02087842]
[1643347874755,1.48781118,92.875,92.754,11.5]
[1643347875157,1.48781118,92.872,92.754,11.5]
[1643347875357,109.3,92.87,92.754,11.5]
[1643347875556,110.78781118,92.87,92.754,11.5]
[1643347875760,1.48781118,92.869,92.754,11.5]
[1643347875957,16.1779,92.85,92.754,11.5]
[1643347876460,13.88023956,92.849,92.754,11.5]
[1643347876660,15.36805074,92.849,92.754,11.5]
[1643347876855,2.95669142,92.848,92.754,11.5]
[1643347877056,1.48781118,92.846,92.754,11.5]
[1643347877257,6.0,92.838,92.754,11.5]
[1643347877656,13.88023956,92.837,92.754,11.5]
[1643347877856,109.3,92.836,92.754,11.5]
[1643347878262,6.0,92.838,92.754,11.5]
[1643347879061,6.0,92.828,92.754,11.5]
[1643347879462,109.3,92.829,92.754,11.5]
[1643347879659,6.0,92.818,92.754,11.5]
[1643347879860,1.48781118,92.85,92.754,11.5]
[1643347880061,6.0,92.83,92.722,17.27237842]
[1643347880260,6.0,92.83,92.723,0.25]
[1643347880664,1.48781118,92.851,92.723,51.92660925]
[1643347880864,6.0,92.82,92.723,51.92660925]
[1643347881072,6.0,92.841,92.723,51.67660925]
[1643347881864,109.3,92.842,92.723,68.94898767]
[1643347882065,6.0,92.832,92.723,68.94898767]
[1643347882264,6.0,92.832,92.724,0.25]
[1643347884171,6.0,92.832,92.723,68.94898767]
[1643347885392,6.0,92.832,92.724,19.43323811]
[1643347885593,1.48781118,92.852,92.724,19.43323811]
[1643347885793,1.48781118,92.852,92.734,6.0]
[1643347885996,1.48781118,92.866,92.735,6.0]
[1643347886194,17.66191118,92.87,92.735,42.70561653]
[1643347886394,16.1741,92.87,92.736,17.03224153]
[1643347886597,16.1741,92.87,92.747,47.43809296]
[1643347886797,16.1741,92.87,92.748,0.25]
[1643347887095,16.1741,92.87,92.757,6.0]
[1643347887294,16.1741,92.87,92.758,0.25]
[1643347887494,16.1741,92.87,92.759,6.0]
[1643347887694,1.48781118,92.867,92.759,6.0]
[1643347887895,1.48781118,92.864,92.759,6.0]
[1643347888096,1.48781118,92.863,92.749,17.27237842]
[1643347888295,16.1767,92.86,92.75,0.25]
[1643347888995,16.1767,92.86,92.749,17.27237842]
[1643347888996,1.48781118,92.859,92.749,17.27237842]
[1643347889495,1.48781118,92.858,92.749,17.27237842]
[1643347889698,1.48781118,92.857,92.749,17.27237842]
[1643347890496,6.0,92.847,92.749,17.27237842]
[1643347890899,109.3,92.846,92.749,17.27237842]
[1643347891098,1.48781118,92.844,92.749,17.27237842]
[1643347891299,110.78781118,92.844,92.729,17.27237842]
[1643347891498,1.48781118,92.843,92.741,37.01428184]
[1643347892098,110.78781118,92.844,92.741,37.01428184]
[1643347892298,1.48781118,92.843,92.741,37.01428184]
[1643347892498,109.3,92.844,92.712,17.03224153]
[1643347892699,1.48781118,92.835,92.712,17.03224153]
[1643347892899,109.3,92.844,92.712,17.03224153]
[1643347892900,1.48781118,92.833,92.734,6.0]
[1643347893300,1.48781118,92.833,92.735,0.25]
[1643347893499,1.48781118,92.835,92.735,0.25]
[1643347894100,1.48781118,92.834,92.735,0.25]
[1643347894304,1.48781118,92.835,92.734,0.25]
[1643347894701,109.3,92.833,92.734,0.25]
[1643347895303,109.3,92.831,92.734,0.25]
[1643347895902,109.3,92.831,92.733,6.0]
[1643347896304,109.3,92.831,92.734,0.25]
[1643347896706,109.3,92.831,92.733,6.0]
[1643347897106,109.3,92.831,92.734,0.25]
[1643347897507,109.3,92.831,92.733,6.0]
[1643347897812,1.48781118,92.827,92.712,17.03224153]
[1643347898006,16.1823,92.83,92.713,0.25]
[1643347898007,6.0,92.821,92.713,0.25]
[1643347898208,109.3,92.819,92.713,0.25]
[1643347898407,1.48781118,92.816,92.713,0.25]
[1643347898605,109.3,92.819,92.713,0.25]
[1643347898606,1.48781118,92.817,92.713,0.25]
[1643347899008,1.48781118,92.817,92.71,0.25]
[1643347899608,1.48781118,92.816,92.71,0.25]
[1643347899808,1.48781118,92.817,92.711,19.41878266]
[1643347900007,1.48781118,92.816,92.711,19.41878266]
[1643347900208,1.48781118,92.816,92.712,0.25]
[1643347900409,1.48781118,92.816,92.712,17.27237842]
[1643347900610,1.48781118,92.816,92.713,17.27237842]
[1643347900809,1.48781118,92.816,92.714,0.25]
[1643347901009,24.227,92.899,92.724,38.338972]
[1643347901010,1.48781118,92.823,92.724,38.338972]
[1643347901212,1.48781118,92.839,92.724,38.338972]
[1643347901412,1.48781118,92.846,92.734,6.0]
[1643347901609,1.48781118,92.846,92.735,6.0]
[1643347901810,1.48781118,92.846,92.735,23.52237842]
[1643347902013,1.48781118,92.846,92.735,25.42864577]
[1643347902210,1.48781118,92.841,92.736,17.27237842]
[1643347902411,1.48781118,92.841,92.737,0.25]
[1643347902609,1.48781118,92.838,92.747,40.56150885]
[1643347902810,1.48781118,92.838,92.748,0.25]
[1643347903012,1.48781118,92.832,92.757,6.0]
[1643347903411,1.48781118,92.833,92.758,0.25]
[1643347903612,1.48781118,92.836,92.757,6.0]
[1643347903813,1.48781118,92.834,92.757,6.0]
[1643347904014,1.48781118,92.832,92.759,2.14640424]
[1643347904212,1.48781118,92.846,92.759,2.14640424]
[1643347904412,1.48781118,92.862,92.77,43.37927738]
[1643347904616,1.48781118,92.867,92.78,6.0]
[1643347904913,1.48781118,92.875,92.781,0.25]
[1643347905118,1.48781118,92.889,92.79,16.1619]
[1643347905313,1.48781118,92.899,92.791,48.69679432]
[1643347905512,1.48781118,92.899,92.801,115.3]
[1643347905712,1.48781118,92.907,92.801,115.3]
[1643347905914,86.20550291,92.916,92.802,17.28224153]
[1643347906113,1.48781118,92.916,92.802,53.39064244]
[1643347906314,1.48781118,92.919,92.82,16.1568]
[1643347906513,1.48781118,92.922,92.83,6.0]
[1643347906714,1.48781118,92.922,92.831,42.82616883]
[1643347906913,1.48781118,92.931,92.831,43.07616883]
[1643347907215,1.48781118,92.935,92.841,6.0]
[1643347907413,1.48781118,92.938,92.841,6.0]
[1643347907612,1.48781118,92.938,92.842,36.35840091]
[1643347907815,1.48781118,92.937,92.842,53.39064244]
[1643347908017,1.48781118,92.939,92.843,30.10840091]
[1643347908216,1.48781118,92.94,92.843,30.10840091]
[1643347908414,1.48781118,92.94,92.854,44.37553689]
[1643347908614,1.48781118,92.941,92.864,6.0]
[1643347908815,1.48781118,92.945,92.865,0.25]
[1643347909416,1.48781118,92.941,92.864,6.0]
[1643347909618,1.48781118,92.94,92.874,6.0]
[1643347909819,1.48781118,92.937,92.854,44.37553689]
[1643347910017,1.48781118,92.94,92.854,44.37553689]
[1643347910221,1.48781118,92.944,92.855,0.25]
[1643347910417,1.48781118,92.94,92.855,0.25]
[1643347910818,1.48781118,92.94,92.844,17.30184508]
[1643347911117,6.0,92.93,92.825,17.30184508]
[1643347911321,1.48781118,92.914,92.761,47.5463]
[1643347911521,1.48781118,92.911,92.79,2.14640424]
[1643347911717,1.48781118,92.912,92.79,2.14640424]
[1643347911918,1.48781118,92.913,92.791,45.88333902]
[1643347912320,17.65611118,92.91,92.801,6.0]
[1643347912518,1.48781118,92.908,92.801,6.0]
[1643347912720,1.48781118,92.906,92.801,6.0]
[1643347913117,1.48781118,92.905,92.801,6.0]
[1643347913317,1.48781118,92.903,92.791,45.88333902]
[1643347913520,1.48781118,92.903,92.792,0.25]
[1643347913818,16.1697,92.9,92.791,45.88333902]
[1643347914218,2.95669142,92.902,92.791,45.88333902]
[1643347914219,112.25669142,92.899,92.791,45.88333902]
[1643347914419,1.48781118,92.895,92.791,45.88333902]
[1643347914618,1.48781118,92.893,92.791,45.88333902]
[1643347914818,6.0,92.885,92.791,45.88333902]
[1643347915020,109.3,92.884,92.791,45.88333902]
[1643347915419,2.95669142,92.883,92.791,45.88333902]
[1643347915618,2.95669142,92.883,92.759,17.03224153]
[1643347915820,2.95669142,92.883,92.766,0.25]
[1643347916221,4.4445026,92.883,92.766,0.25]
[1643347916621,16.1734,92.88,92.759,17.03224153]
[1643347916823,1.48781118,92.878,92.74,17.03224153]
[1643347917022,1.48781118,92.867,92.751,6.0]
[1643347917225,1.48781118,92.865,92.74,17.03224153]
[1643347917424,1.48781118,92.863,92.74,17.03224153]
[1643347917826,1.48781118,92.864,92.741,38.84692892]
[1643347918223,1.48781118,92.865,92.741,38.84692892]
[1643347918423,109.3,92.849,92.742,0.25]
[1643347918623,48.6564,92.848,92.742,0.25]
[1643347919229,109.3,92.847,92.742,0.25]
[1643347919833,48.6564,92.848,92.743,2.14640424]
[1643347920031,48.6564,92.848,92.751,6.0]
[1643347920235,1.48781118,92.866,92.753,6.0]
[1643347920432,1.48781118,92.878,92.753,6.0]
[1643347920634,1.48781118,92.878,92.755,47.99456576]
[1643347920833,109.3,92.878,92.756,0.25]
[1643347921932,24.5563,92.879,92.757,16.14780923]
[1643347922132,24.5563,92.879,92.767,6.0]
[1643347922439,1.48781118,92.89,92.768,0.25]
[1643347922633,1.48781118,92.892,92.768,8.39640424]
[1643347922837,1.48781118,92.892,92.769,39.8873576]
[1643347923032,1.48781118,92.892,92.779,6.0]
[1643347923433,16.1704,92.89,92.78,0.25]
[1643347923634,109.3,92.889,92.78,6.25]
[1643347924833,16.1704,92.89,92.78,6.25]
[1643347925637,132.3005,92.889,92.78,6.25]
[1643347926456,132.3005,92.889,92.78,6.0]
[1643347926655,16.1733,92.88,92.779,6.0]
[1643347927055,6.0,92.87,92.779,6.0]
[1643347927256,1.48781118,92.879,92.779,6.0]
[1643347927456,6.0,92.86,92.779,6.0]
[1643347927656,6.0,92.869,92.769,37.74095336]
[1643347927856,6.0,92.869,92.779,6.0]
[1643347928058,47.6751,92.868,92.779,6.0]
[1643347928456,109.3,92.867,92.779,6.0]
[1643347930059,109.3,92.867,92.769,37.74095336]
[1643347930259,109.3,92.867,92.779,6.0]
[1643347930861,110.78781118,92.867,92.779,6.0]
[1643347931061,109.3,92.867,92.779,6.0]
[1643347931662,47.6751,92.868,92.779,6.0]
[1643347932061,49.16291118,92.868,92.779,6.0]
[1643347932262,1.48781118,92.867,92.769,37.74095336]
[1643347932466,1.48781118,92.866,92.769,37.74095336]
[1643347933271,1.48781118,92.865,92.769,37.74095336]
[1643347933966,1.48781118,92.863,92.769,37.74095336]
[1643347934165,1.48781118,92.866,92.769,37.74095336]
[1643347934369,1.48781118,92.863,92.769,37.74095336]
[1643347934967,1.48781118,92.864,92.769,37.74095336]
[1643347935367,1.48781118,92.865,92.769,37.74095336]
[1643347935570,6.0,92.855,92.711,26.04648332]
[1643347935773,22.5813,92.854,92.721,23.7171]
[1643347936067,1.48781118,92.848,92.724,16.14780923]
[1643347936476,1.48781118,92.848,92.732,45.89825148]
[1643347936670,1.48781118,92.846,92.732,45.89825148]
[1643347936870,1.48781118,92.844,92.733,0.25]
[1643347937471,1.48781118,92.845,92.733,0.25]
[1643347938072,1.48781118,92.842,92.733,0.25]
[1643347938874,109.3,92.839,92.733,0.25]
[1643347939272,109.3,92.828,92.733,0.25]
[1643347939472,109.3,92.826,92.733,0.25]
[1643347940274,1.48781118,92.838,92.734,18.29421347]
[1643347940472,96.76691002,92.979,92.743,109.3]
[1643347940473,1.48781118,92.857,92.743,109.3]
[1643347940673,1.48781118,92.873,92.744,7.45858332]
[1643347940878,1.48781118,92.879,92.763,1.45858332]
[1643347941073,1.48781118,92.884,92.773,6.0]
[1643347941275,1.48781118,92.887,92.774,36.22834117]
[1643347941476,1.48781118,92.887,92.79,16.1628]
[1643347941676,1.48781118,92.887,92.791,39.22559893]
[1643347941879,1.48781118,92.901,92.8,6.0]
[1643347942080,1.48781118,92.901,92.802,6.0]
[1643347942284,1.48781118,92.902,92.803,0.25]
[1643347942483,1.48781118,92.899,92.803,16.39780923]
[1643347942683,1.48781118,92.902,92.811,43.87008588]
[1643347942884,1.48781118,92.904,92.813,6.0]
[1643347943084,1.48781118,92.904,92.821,6.0]
[1643347943284,1.48781118,92.904,92.822,0.25]
[1643347943486,1.48781118,92.905,92.822,6.25]
[1643347943684,1.48781118,92.907,92.825,37.77678465]
[1643347943885,1.48781118,92.907,92.832,6.0]
[1643347944086,1.48781118,92.903,92.825,37.77678465]
[1643347944287,1.48781118,92.894,92.794,10.92644285]
[1643347944487,1.48781118,92.894,92.804,6.0]
[1643347944686,1.48781118,92.89,92.804,6.0]
[1643347944886,1.48781118,92.893,92.805,0.25]
[1643347945086,1.48781118,92.897,92.805,0.25]
[1643347945288,1.48781118,92.9,92.805,42.30345903]
[1643347945486,1.48781118,92.899,92.805,42.30345903]
[1643347945690,1.48781118,92.9,92.815,6.0]
[1643347945888,1.48781118,92.901,92.816,0.25]
[1643347946092,1.48781118,92.9,92.816,0.25]
[1643347946290,1.48781118,92.899,92.816,0.25]
[1643347946689,1.48781118,92.9,92.816,0.25]
[1643347948488,24.0006,92.915,92.816,0.25]
[1643347948489,1.48781118,92.906,92.817,2.14640424]
[1643347948692,1.48781118,92.902,92.816,0.25]
[1643347948893,1.48781118,92.903,92.816,0.25]
[1643347949289,1.48781118,92.9,92.816,0.25]
[1643347949489,1.48781118,92.898,92.816,0.25]
[1643347950290,1.48781118,92.901,92.816,0.25]
[1643347950591,1.48781118,92.902,92.816,0.25]
[1643347951292,1.48781118,92.899,92.816,0.25]
[1643347951694,1.48781118,92.899,92.815,6.0]
[1643347951893,1.48781118,92.89,92.805,42.05345903]
[1643347952095,1.48781118,92.883,92.779,16.15012034]
[1643347952494,1.48781118,92.883,92.789,6.0]
[1643347952714,1.48781118,92.883,92.779,16.15012034]
[1643347952921,1.48781118,92.882,92.779,16.15012034]
[1643347953119,1.48781118,92.872,92.78,43.7538502]
[1643347953319,1.48781118,92.873,92.78,43.7538502]
[1643347953520,1.48781118,92.874,92.78,43.7538502]
[1643347953719,1.48781118,92.873,92.78,43.7538502]
[1643347954521,1.48781118,92.867,92.78,43.7538502]
[1643347954720,1.48781118,92.868,92.78,43.7538502]
[1643347955121,1.48781118,92.867,92.78,43.7538502]
[1643347955321,1.48781118,92.868,92.78,43.7538502]
[1643347955520,1.48781118,92.869,92.78,43.7538502]
[1643347955720,1.48781118,92.867,92.78,43.7538502]
[1643347955921,1.48781118,92.866,92.78,43.7538502]
[1643347956322,110.78781118,92.866,92.78,43.7538502]
[1643347956525,49.72941118,92.867,92.78,43.7538502]
[1643347956724,48.2416,92.867,92.781,0.25]
[1643347957625,48.2416,92.867,92.78,43.7538502]
[1643347957827,109.3,92.866,92.78,43.7538502]
[1643347958028,1.48781118,92.862,92.78,43.7538502]
[1643347958228,1.48781118,92.861,92.78,43.7538502]
[1643347958828,1.48781118,92.865,92.78,43.7538502]
[1643347959032,110.78781118,92.866,92.78,43.7538502]
[1643347959329,1.48781118,92.866,92.78,43.7538502]
[1643347959728,48.2416,92.867,92.78,43.7538502]
[1643347959930,49.72941118,92.867,92.78,43.7538502]
[1643347960130,48.2416,92.867,92.78,43.7538502]
[1643347962233,1.48781118,92.865,92.78,43.7538502]
[1643347962633,1.48781118,92.863,92.78,43.7538502]
[1643347963034,1.48781118,92.872,92.781,2.39640424]
[1643347963232,1.48781118,92.872,92.79,6.0]
[1643347963434,1.48781118,92.879,92.791,6.0]
[1643347963634,1.48781118,92.879,92.792,6.0]
[1643347963835,1.48781118,92.885,92.793,0.25]
[1643347964040,1.48781118,92.887,92.802,39.51379165]
[1643347964433,1.48781118,92.887,92.803,0.25]
[1643347964835,1.48781118,92.887,92.802,39.51379165]
[1643347965033,1.48781118,92.886,92.802,39.51379165]
[1643347965635,1.48781118,92.885,92.802,39.51379165]
[1643347966235,1.48781118,92.883,92.802,39.51379165]
[1643347966638,1.48781118,92.884,92.802,39.51379165]
[1643347967235,1.48781118,92.88,92.803,0.25]
[1643347967436,1.48781118,92.882,92.803,0.25]
[1643347968039,1.48781118,92.881,92.803,0.25]
[1643347969040,1.48781118,92.878,92.803,0.25]
[1643347969441,1.48781118,92.879,92.803,0.25]
[1643347969640,1.48781118,92.877,92.803,0.25]
[1643347970944,1.48781118,92.876,92.803,0.25]
[1643347972080,1.48781118,92.886,92.812,6.0]
[1643347972278,1.48781118,92.891,92.813,0.25]
[1643347972481,1.48781118,92.891,92.814,6.0]
[1643347972779,1.48781118,92.892,92.815,0.25]
[1643347973179,51.163257,92.927,92.813,6.0]
[1643347973180,1.48781118,92.889,92.813,6.0]
[1643347973380,1.48781118,92.887,92.815,0.25]
[1643347973582,1.48781118,92.885,92.815,0.25]
[1643347974386,1.48781118,92.883,92.815,0.25]
[1643347974880,1.48781118,92.883,92.804,22.8432]
[1643347974881,1.48781118,92.882,92.805,0.25]